bitfinex/quotes_ETHUSD_20240926
["timestamp","ask_amount","ask_price","bid_price","bid_amount"]
[1727366327862,4.57257,2658.8,2658.3,3.76179]
[1727366328500,0.8114,2658.8,2658.4,3.76165]
[1727366329192,0.8114,2658.8,2658.1,0.8166]
[1727366329512,0.8114,2658.8,2658.6,3.76131]
[1727366330211,0.8114,2658.8,2658.5,3.7615]
[1727366330513,0.8114,2658.8,2658.4,3.76159]
[1727366331220,0.8114,2658.8,2658.5,3.76144]
[1727366331585,4.5725,2658.8,2658.2,3.76191]
[1727366331907,3.76138,2658.6,2658.2,3.76186]
[1727366332380,4.5725,2658.8,2658.3,3.76173]
[1727366332583,3.76125,2658.7,2658.3,3.76173]
[1727366333011,3.76141,2658.6,2658.2,3.76193]
[1727366333181,3.76056,2659.2,2658.0,3.76213]
[1727366333182,4.52709,2658.5,2658.0,3.76213]
[1727366333578,4.52709,2658.5,2658.1,3.76205]
[1727366333803,0.7655,2658.5,2658.1,3.76205]
[1727366334188,4.52704,2658.5,2658.1,3.76205]
[1727366334796,0.7655,2658.5,2658.1,3.76205]
[1727366334982,0.7655,2658.5,2658.2,3.76191]
[1727366335316,0.7655,2658.5,2658.0,0.07523647]
[1727366335515,4.52713,2658.5,2658.0,3.76222]
[1727366335880,3.76215,2658.1,2657.5,3.76285]
[1727366336108,0.8294,2658.0,2657.5,3.76284]
[1727366336313,0.8294,2658.0,2657.8,3.76243]
[1727366336593,0.8294,2658.3,2658.0,3.76213]
[1727366337887,0.7763,2658.5,2658.1,3.76205]
[1727366338262,0.7763,2658.5,2658.2,3.76187]
[1727366338931,0.7763,2658.5,2658.1,3.76205]
[1727366339126,0.7763,2658.5,2658.1,3.76199]
[1727366340132,4.53783,2658.5,2657.9,3.76227]
[1727366340662,3.76166,2658.4,2657.9,3.76227]
[1727366341241,8.29946,2658.5,2657.9,3.76227]
[1727366341437,4.53783,2658.5,2657.9,3.76227]
[1727366341638,4.53783,2658.5,2657.6,3.76274]
[1727366341639,3.7621,2658.1,2657.6,3.76274]
[1727366341840,3.76215,2658.1,2657.5,6.7628]
[1727366342044,3.76215,2658.1,2657.6,3.76268]
[1727366342338,4.55483,2658.3,2657.7,3.45003667]
[1727366342339,0.793,2658.3,2657.7,3.45003667]
[1727366342542,0.793,2658.3,2657.9,3.76224]
[1727366342739,3.76133,2658.7,2657.9,3.76224]
[1727366342740,0.7621,2658.6,2658.0,3.45003667]
[1727366342949,0.7621,2658.6,2658.2,7.52388]
[1727366343151,0.7621,2658.6,2658.3,3.76178]
[1727366343552,0.7621,2658.6,2658.2,3.76194]
[1727366343765,0.7621,2658.6,2658.2,3.76185]
[1727366344264,0.7621,2658.6,2658.0,7.21216667]
[1727366344472,3.76176,2658.4,2657.9,3.76236]
[1727366345545,0.8168,2658.1,2657.7,3.45003667]
[1727366345773,4.57889,2658.1,2657.6,3.76268]
[1727366346187,0.8168,2658.1,2657.6,3.76268]
[1727366346386,0.8168,2658.1,2657.8,3.76241]
[1727366346802,3.76176,2658.4,2657.5,3.0]
[1727366346803,4.58306,2658.4,2657.7,3.45003667]
[1727366347020,4.58306,2658.4,2657.9,3.76225]
[1727366347663,0.8213,2658.4,2658.0,3.76217]
[1727366348411,3.76145,2658.6,2658.1,3.83729246]
[1727366348777,3.76145,2658.6,2657.9,3.0]
[1727366348976,3.76172,2658.4,2657.9,3.76227]
[1727366349279,0.7844,2658.3,2657.9,3.76227]
[1727366349988,0.7844,2658.3,2657.9,7.52455]
[1727366350221,0.7844,2658.3,2657.9,3.76227]
[1727366350882,0.7844,2658.3,2658.0,3.76221]
[1727366351981,0.7844,2658.3,2658.1,3.76206]
[1727366352694,0.7844,2658.3,2658.0,3.76222]
[1727366353201,0.7844,2658.3,2657.8,3.45003667]
[1727366353459,4.54621,2658.3,2657.9,3.76235]
[1727366353835,4.54621,2658.3,2657.9,7.52465]
[1727366354036,0.7844,2658.3,2658.0,3.76218]
[1727366354266,0.7844,2658.3,2657.9,3.76227]
[1727366354463,0.7844,2658.3,2658.0,3.76212]
[1727366355250,0.7844,2658.3,2658.1,3.76208]
[1727366356939,0.7844,2658.3,2658.0,3.76221]
[1727366357143,0.7844,2658.3,2658.0,3.76218]
[1727366357592,0.7844,2658.3,2658.0,7.52433]
[1727366357935,0.7844,2658.3,2658.0,3.76218]
[1727366358335,0.7844,2658.3,2657.6,3.45003667]
[1727366358602,3.76214,2658.1,2657.6,3.76273]
[1727366358939,3.76214,2658.1,2657.4,6.781066]
[1727366358940,3.76232,2658.0,2657.4,3.781046]
[1727366359176,3.76232,2658.0,2657.5,3.76285]
[1727366359758,4.53389,2658.1,2657.6,3.76266]
[1727366360061,0.7718,2658.1,2657.6,7.52537]
[1727366360267,4.53396,2658.1,2657.6,7.52534]
[1727366360638,3.76226,2658.0,2657.6,3.76266]
[1727366360843,4.53389,2658.1,2657.6,3.76266]
[1727366361045,0.7718,2658.1,2657.8,3.76248]
[1727366363039,4.53392,2658.1,2657.6,3.76269]
[1727366363266,3.76231,2658.0,2657.5,3.76292]
[1727366364047,4.53388,2658.1,2657.6,3.76277]
[1727366364343,8.29609,2658.1,2657.6,3.76277]
[1727366364544,9.125699,2658.1,2657.6,3.76277]
[1727366364744,5.363489,2658.1,2657.6,3.76277]
[1727366364973,3.76226,2658.0,2657.6,3.76277]
[1727366365375,3.76251,2657.8,2657.4,0.018096]
[1727366365576,3.85680268,2657.7,2657.4,0.018096]
[1727366365951,3.76273,2657.7,2657.4,0.018096]
[1727366366143,0.7523,2657.9,2657.4,0.018096]
[1727366366144,4.5148,2657.9,2657.4,0.018096]
[1727366366360,3.76266,2657.7,2657.4,0.018096]
[1727366366588,7.52545,2657.7,2657.4,0.018096]
[1727366366888,3.76293,2657.5,2657.4,0.018096]
[1727366367398,4.68611042,2657.5,2657.4,0.018096]
[1727366367886,4.59203,2657.5,2657.4,0.018096]
[1727366368087,5.427514,2657.5,2657.4,0.018096]
[1727366369804,4.59203,2657.5,2657.4,0.018096]
[1727366370710,0.8291,2657.5,2657.4,0.018096]
[1727366371909,4.59203,2657.5,2657.4,0.018096]
[1727366373088,0.8291,2657.5,2657.4,0.018096]
[1727366373289,4.59203,2657.5,2657.4,0.018096]
[1727366373484,0.8291,2657.5,2657.4,0.018096]
[1727366375213,3.76271,2657.7,2657.4,0.018096]
[1727366375372,7.52544,2657.7,2657.4,0.018096]
[1727366375577,3.76271,2657.7,2657.4,0.018096]
[1727366375981,7.52545,2657.7,2657.4,0.018096]
[1727366376176,3.76271,2657.7,2657.4,0.018096]
[1727366376408,4.54248,2657.9,2657.4,0.018096]
[1727366376616,3.76257,2657.8,2657.4,3.781136]
[1727366377478,0.78,2657.9,2657.5,3.7629]
[1727366377679,8.35061,2658.2,2657.7,3.76255]
[1727366377915,3.76208,2658.1,2657.6,3.76276]
[1727366378315,11.157,2657.7,2657.5,3.76279]
[1727366378541,11.157,2657.7,2657.4,0.826796]
[1727366378726,11.9766,2657.7,2657.4,0.018096]
[1727366378903,15.73931,2657.7,2657.4,0.018096]
[1727366379313,3.76281,2657.6,2657.4,0.018096]
[1727366380143,15.73926,2657.7,2657.4,0.018096]
[1727366381557,11.9766,2657.7,2657.4,3.781166]
[1727366381718,11.157,2657.7,2657.4,3.781076]
[1727366382110,11.157,2657.7,2657.5,3.76293]
[1727366382309,11.157,2657.7,2657.4,3.781076]
[1727366383520,11.157,2657.7,2657.5,3.76282]
[1727366384174,11.157,2657.7,2657.4,0.018096]
[1727366384613,11.157,2657.7,2657.4,3.781156]
[1727366385056,11.157,2657.7,2657.4,0.018096]
[1727366385246,11.157,2657.7,2657.5,3.7629]
[1727366385566,11.157,2657.7,2657.6,3.76279]
[1727366386235,11.157,2657.7,2657.6,7.21282667]
[1727366388024,11.157,2657.7,2657.6,3.76279]
[1727366388220,11.157,2657.7,2657.5,3.76286]
[1727366388743,11.157,2657.7,2657.5,7.52571]
[1727366389057,11.157,2657.7,2657.6,3.76279]
[1727366389250,11.157,2657.7,2657.5,3.76285]
[1727366389562,11.9637,2657.7,2657.4,0.018096]
[1727366390418,15.72643,2657.7,2657.4,0.018096]
[1727366390619,11.9637,2657.7,2657.4,0.018096]
[1727366390819,3.76279,2657.6,2657.4,0.018096]
[1727366391020,3.76293,2657.5,2657.4,0.018096]
[1727366391280,3.85701256,2657.5,2657.4,0.018096]
[1727366391969,4.51923,2657.5,2657.4,0.018096]
[1727366393547,0.7563,2657.5,2657.4,0.018096]
[1727366394181,4.61331288,2657.5,2657.4,0.018096]
[1727366394457,6.47254029,2657.5,2657.4,0.018096]
[1727366397640,4.51923,2657.5,2657.4,0.018096]
[1727366398983,4.61332205,2657.5,2657.4,0.018096]
[1727366399483,4.51923,2657.5,2657.4,0.018096]
[1727366400716,0.7563,2657.5,2657.4,0.018096]
[1727366402050,3.76293,2657.5,2657.4,0.018096]
[1727366405154,4.77439837,2657.5,2657.4,0.018096]
[1727366405486,4.86848083,2657.5,2657.4,0.018096]
[1727366405651,3.76293,2657.5,2657.4,0.018096]
[1727366406591,11.9522,2657.7,2657.4,0.018096]
[1727366406898,11.157,2657.7,2657.6,3.76279]
[1727366407261,11.157,2657.7,2657.5,3.76284]
[1727366407455,11.157,2657.7,2657.6,3.76279]
[1727366408086,11.157,2657.7,2657.6,7.53509]
[1727366409185,11.157,2657.7,2657.6,7.61033344]
[1727366409699,11.157,2657.7,2657.6,7.53509]
[1727366410718,11.157,2657.7,2657.6,4.53509]
[1727366412577,11.157,2657.7,2657.6,0.7723]
[1727366412910,11.157,2657.7,2657.4,3.018096]
[1727366413422,11.157,2657.7,2657.5,3.76292]
[1727366413775,11.157,2657.7,2657.6,3.76279]
[1727366414201,11.157,2657.7,2657.6,4.59469]
[1727366414400,11.157,2657.7,2657.6,7.59469]
[1727366415502,10.3717441,2657.7,2657.6,7.59469]
[1727366415704,8.97589504,2657.7,2657.6,10.35482747]
[1727366415935,8.97589504,2657.7,2657.6,9.02876454]
[1727366416215,8.97589504,2657.7,2657.6,8.14469]
[1727366419017,8.97589504,2657.7,2657.6,5.14469]
[1727366419183,8.97589504,2657.7,2657.6,4.31279]
[1727366419388,8.97589504,2657.7,2657.6,3.76279]
[1727366420574,8.97589504,2657.7,2657.6,4.56919]
[1727366421204,8.97589504,2657.7,2657.6,3.76279]
[1727366422677,8.97589504,2657.7,2657.6,3.8380396]
[1727366422920,8.97589504,2657.7,2657.6,3.76279]
[1727366423478,8.97589504,2657.7,2657.6,6.76279]
[1727366423978,12.73854504,2657.7,2657.4,0.018096]
[1727366424180,9.87348454,2657.7,2657.4,0.018096]
[1727366424421,4.55723,2657.5,2657.4,0.018096]
[1727366424806,4.65131316,2657.5,2657.4,0.018096]
[1727366425925,8.10134983,2657.5,2657.4,0.018096]
[1727366426126,10.18103611,2657.5,2657.4,0.018096]
[1727366426333,6.73099944,2657.5,2657.4,0.018096]
[1727366430975,6.82509895,2657.5,2657.4,0.018096]
[1727366431176,6.73099944,2657.5,2657.4,0.018096]
[1727366432448,6.82509216,2657.5,2657.4,0.018096]
[1727366432647,6.73099944,2657.5,2657.4,0.018096]
[1727366433089,6.82509807,2657.5,2657.4,0.018096]
[1727366433301,9.82509807,2657.5,2657.4,0.018096]
[1727366433445,9.73099944,2657.5,2657.4,0.018096]
[1727366434291,9.48669944,2657.5,2656.6,0.0382426]
[1727366434499,4.57096,2656.7,2656.6,0.0382426]
[1727366434653,4.66509062,2656.7,2656.6,0.0382426]
[1727366434856,4.66508841,2656.7,2656.6,0.0382426]
[1727366435085,4.57096,2656.7,2656.6,0.0382426]
[1727366435363,4.66509475,2656.7,2656.6,0.0382426]
[1727366435961,4.57096,2656.7,2656.6,0.0382426]
[1727366436493,5.82964809,2656.7,2656.6,0.0382426]
[1727366439084,5.92378273,2656.7,2656.6,0.0382426]
[1727366439259,8.92378273,2656.7,2656.6,0.0382426]
[1727366439583,9.37964809,2656.7,2656.6,0.0382426]
[1727366445811,9.37964809,2656.7,2655.0,9.6075926]
[1727366445812,8.78668093,2655.9,2655.0,9.6075926]
[1727366446103,4.5347,2655.9,2655.2,3.76611]
[1727366446397,4.5347,2655.9,2655.3,3.76604]
[1727366446577,4.5347,2655.9,2655.1,3.76619]
[1727366446578,3.76543,2655.8,2655.1,3.76619]
[1727366446771,3.76543,2655.8,2655.0,9.6076126]
[1727366446772,3.76541,2655.8,2655.0,5.8412426]
[1727366446985,3.76531,2655.9,2655.1,3.45746935]
[1727366447203,3.76531,2655.9,2655.5,0.7928]
[1727366447435,3.76529,2655.9,2655.5,0.7928]
[1727366448297,7.53058,2655.9,2655.5,0.7928]
[1727366448796,3.7655,2655.7,2655.5,0.7928]
[1727366449127,3.76582,2655.5,2655.2,0.8009]
[1727366449335,3.76596,2655.4,2655.2,0.8009]
[1727366450200,3.76582,2655.5,2655.2,0.8009]
[1727366450397,3.76591,2655.4,2655.2,0.8009]
[1727366451394,3.76582,2655.5,2655.2,0.8009]
[1727366451599,7.53166,2655.5,2655.2,0.8009]
[1727366451913,3.76593,2655.4,2655.2,0.8009]
[1727366452638,3.76593,2655.4,2655.0,8.8046926]
[1727366452639,3.76605,2655.3,2655.0,5.8069426]
[1727366452801,3.76572,2655.6,2655.0,5.8069426]
[1727366453000,3.76607,2655.3,2655.0,5.8069426]
[1727366453835,3.76622,2655.2,2655.0,5.8069426]
[1727366454001,3.76622,2655.2,2655.0,5.0382426]
[1727366454202,3.76633,2655.1,2655.0,5.0382426]
[1727366454537,4.519585,2655.1,2655.0,5.0382426]
[1727366454843,3.76633,2655.1,2655.0,5.0382426]
[1727366455150,3.76622,2655.2,2655.0,5.0382426]
[1727366455438,3.76633,2655.1,2655.0,5.0382426]
[1727366458901,4.52173,2655.1,2655.0,5.0382426]
[1727366459704,7.52173,2655.1,2655.0,5.0382426]
[1727366459901,8.99627194,2655.1,2655.0,5.0382426]
[1727366460214,9.54627194,2655.1,2655.0,5.0382426]
[1727366460811,8.99627194,2655.1,2655.0,5.0382426]
[1727366462118,5.99627194,2655.1,2655.0,5.0382426]
[1727366462641,4.52173,2655.1,2655.0,5.0382426]
[1727366462847,3.76633,2655.1,2655.0,5.0382426]
[1727366463408,3.76608,2655.3,2655.0,5.7994426]
[1727366463608,3.766,2655.4,2655.0,5.7994426]
[1727366463924,3.45746935,2655.8,2655.0,5.7994426]
[1727366463925,3.7654,2655.8,2655.0,5.7994426]
[1727366464133,3.45746935,2656.2,2655.2,7.22351935]
[1727366464134,4.57954,2656.2,2655.2,7.22351935]
[1727366464344,4.57954,2656.2,2655.0,5.0382426]
[1727366464345,3.76455,2656.4,2655.8,0.7722]
[1727366464542,3.76465,2656.3,2655.8,0.7722]
[1727366465006,3.76479,2656.2,2655.8,0.7722]
[1727366465907,3.76458,2656.4,2655.8,0.7722]
[1727366466107,3.76413,2656.7,2655.8,0.7722]
[1727366466344,3.76363,2657.1,2656.1,3.76486]
[1727366466345,3.76384,2656.9,2656.1,3.76486]
[1727366466560,3.76384,2656.9,2656.2,4.52916]
[1727366466845,3.76384,2656.9,2656.2,0.7644]
[1727366467358,1.190963,2657.1,2656.2,0.7644]
[1727366467359,3.76408,2656.7,2656.2,0.7644]
[1727366467651,3.85833582,2656.6,2656.2,0.7644]
[1727366468007,0.09411582,2656.6,2656.2,0.7644]
[1727366468748,0.8146,2657.1,2656.2,0.7644]
[1727366468749,3.76355,2657.1,2656.2,0.7644]
[1727366468960,3.76355,2657.1,2656.4,0.765]
[1727366469246,3.76355,2657.1,2656.4,4.52937]
[1727366470212,3.85775093,2657.0,2656.4,4.52937]
[1727366470412,0.85623102,2657.0,2656.4,0.765]
[1727366470741,3.76408,2656.7,2656.4,0.765]
[1727366471043,3.76445,2656.5,2655.9,0.8013]
[1727366471351,0.09411912,2656.4,2655.9,4.5665]
[1727366471716,3.85863912,2656.4,2655.9,0.8013]
[1727366472245,3.76452,2656.4,2655.9,0.8013]
[1727366472755,7.52912,2656.4,2655.9,0.8013]
[1727366472916,3.76429,2656.6,2656.0,3.76501]
[1727366473114,3.76399,2656.8,2656.0,0.07529666]
[1727366473425,3.76414,2656.7,2656.3,0.7817]
[1727366475053,3.76399,2656.8,2656.3,0.7817]
[1727366475617,0.8289,2657.5,2656.6,3.7642]
[1727366475828,3.76287,2657.6,2657.1,3.76348]
[1727366476123,3.7635,2657.1,2656.3,0.8223]
[1727366476422,3.76379,2656.9,2656.3,4.58682]
[1727366476859,7.52766,2656.9,2656.3,4.58682]
[1727366477040,3.76411,2656.7,2656.3,0.8223]
[1727366477416,0.752766,2656.9,2656.3,0.8223]
[1727366477612,3.76447,2656.5,2656.0,4.59565]
[1727366477850,3.76447,2656.5,2656.0,0.8306]
[1727366477851,3.85861886,2656.4,2656.0,0.8306]
[1727366478064,3.7645,2656.4,2656.0,0.8306]
[1727366478631,7.52908,2656.4,2656.0,0.8306]
[1727366478858,3.7645,2656.4,2656.0,0.8306]
[1727366479016,3.76437,2656.5,2656.0,0.8306]
[1727366479357,3.7643,2656.6,2656.0,0.8306]
[1727366479520,3.7643,2656.6,2656.0,4.59557]
[1727366479861,3.764,2656.8,2656.0,4.59557]
[1727366479862,0.7999,2657.1,2656.1,3.76483]
[1727366480154,0.7999,2657.1,2656.1,3.76482]
[1727366480155,3.76422,2656.6,2656.1,3.76482]
[1727366480376,0.7999,2657.1,2656.0,0.8306]
[1727366480666,3.76453,2656.4,2656.0,0.8306]
[1727366480816,3.76427,2656.6,2656.0,0.8306]
[1727366480817,0.09412044,2656.5,2656.0,0.8306]
[1727366481017,3.76443,2656.5,2656.0,0.8306]
[1727366481640,3.76427,2656.6,2656.0,0.8306]
[1727366481856,3.76402,2656.8,2656.1,3.7649]
[1727366482151,3.7641,2656.7,2656.1,3.76484]
[1727366482354,3.7641,2656.7,2656.1,7.52967]
[1727366482558,7.52748,2657.0,2656.3,3.76453]
[1727366482862,3.7637,2657.0,2656.5,0.7661]
[1727366483017,3.76408,2656.7,2656.5,0.7661]
[1727366483221,4.140488,2656.7,2656.5,0.7661]
[1727366483420,3.76408,2656.7,2656.2,0.8146]
[1727366483735,3.76426,2656.6,2656.2,0.8146]
[1727366484241,3.76386,2656.9,2656.3,3.76461]
[1727366484444,3.76359,2657.1,2656.6,3.76418]
[1727366484653,3.76359,2657.1,2656.7,0.7579]
[1727366484654,7.52717,2657.1,2656.7,0.7579]
[1727366484831,1.44716885,2657.5,2656.7,0.7579]
[1727366484832,3.76331,2657.3,2656.7,0.7579]
[1727366485060,3.76331,2657.3,2656.8,3.76385]
[1727366485457,3.76331,2657.3,2656.7,0.7579]
[1727366485458,3.76343,2657.2,2656.7,0.7579]
[1727366485666,3.76324,2657.3,2656.8,3.76384]
[1727366485984,7.52656,2657.3,2656.8,3.76384]
[1727366486157,3.76324,2657.3,2656.8,7.52766]
[1727366486482,12.73862504,2657.7,2657.1,4.51443]
[1727366486640,3.76282,2657.6,2657.1,0.751]
[1727366486980,3.76335,2657.2,2657.1,0.751]
[1727366487286,3.76335,2657.2,2656.8,0.7719]
[1727366487584,7.52636,2657.4,2656.8,4.53575]
[1727366487877,3.76301,2657.5,2656.8,4.61104135]
[1727366488068,5.0367615,2657.6,2656.8,4.61104135]
[1727366488069,3.76289,2657.6,2657.0,3.76355]
[1727366489588,3.763,2657.5,2657.0,3.76355]
[1727366490484,3.76311,2657.4,2657.0,3.76355]
[1727366490849,8.97589504,2657.7,2657.1,3.76342]
[1727366491049,8.97589504,2657.7,2657.4,0.8123]
[1727366491483,12.73858504,2657.7,2657.4,0.8123]
[1727366491862,3.76294,2657.5,2656.9,4.57604]
[1727366492164,10.62601354,2657.7,2656.9,4.57604]
[1727366492165,3.76314,2657.4,2656.9,8.33965]
[1727366492483,3.76314,2657.4,2656.9,4.57601]
[1727366492656,3.76314,2657.4,2656.9,8.33971]
[1727366492861,3.76314,2657.4,2656.9,8.3397]
[1727366493061,3.76314,2657.4,2656.9,4.576]
[1727366493601,3.76314,2657.4,2656.9,4.57599]
[1727366493803,3.76314,2657.4,2656.9,0.8123]
[1727366493956,3.76329,2657.3,2656.9,0.8123]
[1727366494305,3.76308,2657.4,2656.9,4.57607]
[1727366494459,3.76308,2657.4,2656.9,0.8123]
[1727366494802,3.76384,2656.9,2656.6,0.7943]
[1727366495005,3.76385,2656.9,2656.4,4.55878]
[1727366495163,7.52825,2656.7,2656.4,0.7943]
[1727366495498,3.76408,2656.7,2656.4,0.7943]
[1727366495795,3.76423,2656.6,2656.4,0.7943]
[1727366495969,3.76435,2656.5,2656.4,0.7943]
[1727366496176,3.76435,2656.5,2656.0,3.76495]
[1727366496177,3.76435,2656.5,2656.1,0.8161]
[1727366497493,0.0941139,2656.6,2656.1,4.58094]
[1727366497494,3.8583239,2656.6,2656.1,4.58094]
[1727366497701,3.8583239,2656.6,2656.1,0.8161]
[1727366497702,7.6226639,2656.6,2656.1,0.8161]
[1727366497904,3.76443,2656.5,2656.1,0.8161]
[1727366499379,3.7649,2656.2,2655.7,0.7526]
[1727366499707,3.85902683,2656.2,2655.7,0.7526]
[1727366500074,3.76507,2656.0,2655.7,0.7526]
[1727366500411,3.76473,2656.3,2655.7,4.51806]
[1727366500616,3.76473,2656.3,2655.7,0.7526]
[1727366500925,3.76441,2656.5,2656.0,3.76499]
[1727366501221,3.0,2656.9,2656.2,0.7526]
[1727366501222,3.76388,2656.9,2656.2,0.7526]
[1727366501377,3.76407,2656.7,2656.2,0.7526]
[1727366501571,4.140627,2656.6,2656.2,0.7526]
[1727366501776,3.76422,2656.6,2656.2,0.7526]
[1727366502573,3.76436,2656.5,2656.2,0.7526]
[1727366502774,3.76436,2656.5,2655.9,4.55821]
[1727366502975,3.76416,2656.7,2655.9,4.5582]
[1727366503297,3.76435,2656.5,2655.9,0.7931]
[1727366503506,3.7647,2656.3,2655.9,0.7931]
[1727366504882,3.7647,2656.3,2655.9,4.55828]
[1727366505303,3.7645,2656.4,2655.9,4.55828]
[1727366506175,3.76444,2656.5,2655.9,4.55828]
[1727366506398,3.76464,2656.3,2655.9,4.55828]
[1727366506908,0.09412199,2656.2,2655.9,0.7931]
[1727366507140,0.09412199,2656.2,2655.2,27.84856166]
[1727366507141,3.76548,2655.7,2655.2,4.57839]
[1727366507281,3.76605,2655.3,2655.0,5.0382426]
[1727366507496,0.09414889,2655.6,2655.0,5.8504426]
[1727366507497,3.76598,2655.4,2655.0,5.8504426]
[1727366507694,7.53198,2655.4,2655.0,5.8504426]
[1727366508438,3.76598,2655.4,2655.0,5.8504426]
[1727366510033,3.76564,2655.6,2655.1,3.76629]
[1727366510236,3.76534,2655.8,2655.2,3.76619]
[1727366510614,3.76534,2655.8,2655.3,3.76604]
[1727366510817,3.76534,2655.8,2655.2,3.76619]
[1727366511039,3.76562,2655.6,2655.0,13.3831726]
[1727366511337,3.76589,2655.5,2655.0,9.6167926]
[1727366511721,3.7661,2655.3,2655.0,5.8504426]
[1727366511914,0.09415974,2655.3,2655.0,5.8504426]
[1727366512228,3.76592,2655.4,2655.0,5.8504426]
[1727366513240,3.76613,2655.3,2655.0,5.8504426]
[1727366513404,3.86028965,2655.3,2655.0,5.0382426]
[1727366514345,3.76613,2655.3,2655.0,5.0382426]
[1727366514702,3.76592,2655.4,2655.0,5.0382426]
[1727366515349,3.76579,2655.5,2655.0,5.0382426]
[1727366515751,3.76579,2655.5,2655.0,8.8046926]
[1727366516066,3.76571,2655.6,2655.0,8.8046926]
[1727366516352,3.76579,2655.5,2655.0,8.8046226]
[1727366517118,3.7661,2655.3,2655.0,5.0382426]
[1727366517651,3.76625,2655.2,2655.0,5.0382426]
[1727366518051,3.76633,2655.1,2655.0,5.0382426]
[1727366518351,3.7661,2655.3,2655.0,5.0382426]
[1727366518858,3.76633,2655.1,2655.0,5.0382426]
[1727366519031,3.7661,2655.3,2655.0,5.0382426]
[1727366519233,3.76633,2655.1,2655.0,5.0382426]
[1727366519658,0.8117,2655.8,2655.0,5.0382426]
[1727366519830,3.76613,2655.3,2655.0,5.0382426]
[1727366520161,7.53228,2655.3,2655.0,5.0382426]
[1727366520328,4.57717,2655.8,2655.0,5.0382426]
[1727366520533,3.76633,2655.1,2655.0,5.0382426]
[1727366520842,3.86049428,2655.1,2655.0,5.0382426]
[1727366521445,3.76633,2655.1,2655.0,5.0382426]
[1727366522128,3.86049426,2655.1,2655.0,5.0382426]
[1727366522626,3.76633,2655.1,2655.0,5.0382426]
[1727366522819,4.5711,2655.4,2655.0,5.0382426]
[1727366523035,3.76613,2655.3,2655.0,5.0382426]
[1727366523560,3.76633,2655.1,2655.0,5.0382426]
[1727366524671,7.65640402,2655.1,2655.0,5.0382426]
[1727366524826,7.56223,2655.1,2655.0,5.0382426]
[1727366527623,7.65640978,2655.1,2655.0,5.0382426]
[1727366528268,7.65640978,2655.1,2654.2,0.0382426]
[1727366528269,7.56367,2654.3,2654.2,0.0382426]
[1727366528468,11.81610166,2654.3,2654.2,0.0382426]
[1727366529752,11.81610166,2654.3,2653.4,0.0382426]
[1727366529753,4.5887,2653.5,2653.4,0.0382426]
[1727366531385,7.68293811,2653.5,2653.4,0.0382426]
[1727366531977,8.73384081,2653.5,2653.4,0.0382426]
[1727366532539,4.91374081,2653.5,2653.4,0.0382426]
[1727366532735,3.7686,2653.5,2653.4,0.0382426]
[1727366533283,3.76847,2653.6,2653.4,0.0382426]
[1727366533494,3.76834,2653.7,2653.4,0.0382426]
[1727366533640,3.76813,2653.9,2653.4,0.0382426]
[1727366534154,3.76821,2653.8,2653.4,0.0382426]
[1727366534352,3.76813,2653.9,2653.4,0.0382426]
[1727366534552,3.76813,2653.9,2653.4,3.8068926]
[1727366534781,7.53514,2654.3,2653.6,0.7525]
[1727366534988,7.53514,2654.3,2653.7,3.76828]
[1727366535188,3.76757,2654.3,2653.7,3.76828]
[1727366535372,3.76757,2654.3,2653.7,7.53651]
[1727366535549,3.76756,2654.3,2653.8,0.828901]
[1727366535757,3.76764,2654.2,2653.8,0.828901]
[1727366535949,3.76756,2654.3,2653.8,0.828901]
[1727366536150,0.8081,2654.5,2653.6,4.52096]
[1727366536151,0.09420266,2654.2,2653.6,0.7525]
[1727366536390,3.76811,2653.9,2653.6,0.7525]
[1727366536750,0.09420798,2653.8,2653.6,0.7525]
[1727366536981,3.86239798,2653.8,2653.6,0.7525]
[1727366537160,0.09420798,2653.8,2653.6,0.7525]
[1727366537370,3.86240798,2653.8,2653.6,0.7525]
[1727366537963,3.7686,2653.5,2653.4,0.0382426]
[1727366538196,3.76835,2653.7,2653.4,0.0382426]
[1727366538991,3.76763,2654.2,2653.4,0.0382426]
[1727366538992,3.7686,2653.5,2653.4,0.0382426]
[1727366539995,3.86282573,2653.5,2653.4,0.0382426]
[1727366540196,4.53173057,2653.5,2653.4,0.0382426]
[1727366542661,3.7686,2653.5,2653.4,0.0382426]
[1727366543823,3.86282964,2653.5,2653.4,0.0382426]
[1727366543953,4.5456,2653.5,2653.4,0.0382426]
[1727366546554,3.7686,2653.5,2653.4,0.0382426]
[1727366548666,7.23276025,2653.5,2653.4,0.0382426]
[1727366548894,8.40812427,2653.5,2653.4,0.0382426]
[1727366549622,4.94396402,2653.5,2653.4,0.0382426]
[1727366550441,11.50236082,2653.5,2653.4,0.0382426]
[1727366550594,11.40812427,2653.5,2653.4,0.0382426]
[1727366550794,12.22622427,2653.5,2653.4,0.0382426]
[1727366552517,8.76206402,2653.5,2653.4,0.0382426]
[1727366552716,12.22622427,2653.5,2653.4,0.0382426]
[1727366559968,12.77622427,2653.5,2653.4,0.0382426]
[1727366561450,8.76206402,2653.5,2653.4,0.0382426]
[1727366562354,9.31206402,2653.5,2653.4,0.0382426]
[1727366562543,8.76206402,2653.5,2653.4,0.0382426]
[1727366563450,3.7686,2653.5,2653.4,0.0382426]
[1727366563872,3.7686,2653.5,2652.6,0.0382426]
[1727366563873,7.23276025,2653.5,2652.6,0.0382426]
[1727366564130,4.54254,2652.7,2652.6,0.0382426]
[1727366564285,3.76974,2652.7,2652.6,0.0382426]
[1727366564479,6.76974,2652.7,2652.6,0.0382426]
[1727366564719,11.71153228,2652.7,2652.6,0.0382426]
[1727366565214,6.76974,2652.7,2652.6,0.0382426]
[1727366566083,10.23390025,2652.7,2652.6,0.0382426]
[1727366567087,6.76974,2652.7,2652.6,0.0382426]